bitfinex/quotes_SOLUSD_20220208
["timestamp","ask_amount","ask_price","bid_price","bid_amount"]
[1644316004269,13.2309,113.41,113.31,13.2309]
[1644316004468,13.2309,113.41,113.31,36.9111]
[1644316004668,13.2309,113.41,113.31,45.14599339]
[1644316009374,14.46014517,113.42,113.31,58.05519339]
[1644316009575,13.2294,113.42,113.31,70.77519339]
[1644316012579,13.2294,113.42,113.31,70.52519339]
[1644316014279,13.2294,113.42,113.31,84.73686021]
[1644316014979,1.27040553,113.44,113.31,84.73686021]
[1644316015279,13.2283,113.43,113.31,91.22630021]
[1644316018283,14.49750553,113.44,113.31,91.22630021]
[1644316018490,1.27040553,113.44,113.31,117.82746175]
[1644316018883,0.03966036,113.44,113.32,22.33608032]
[1644316019083,1.23074517,113.45,113.35,13.2246]
[1644316019287,1.23074517,113.46,113.36,22.9852]
[1644316019482,1.23074517,113.46,113.37,12.72]
[1644316019681,1.23074517,113.46,113.37,18.97]
[1644316019682,1.27040553,113.46,113.37,18.97]
[1644316019881,0.03966036,113.46,113.37,20.95489339]
[1644316020083,14.45444517,113.47,113.37,20.95489339]
[1644316020380,14.45444517,113.47,113.39,13.2234]
[1644316020782,14.45444517,113.47,113.39,13.4734]
[1644316021683,14.45444517,113.47,113.39,19.4734]
[1644316021888,14.45444517,113.47,113.39,13.4734]
[1644316022085,13.2237,113.47,113.39,13.4734]
[1644316022586,13.2237,113.47,113.39,19.4734]
[1644316023490,13.2237,113.47,113.39,6.0]
[1644316023688,14.45444517,113.47,113.38,43.1148]
[1644316023888,14.45444517,113.47,113.38,37.3648]
[1644316024313,14.45444517,113.47,113.38,24.1399]
[1644316025889,14.45654517,113.46,113.38,24.1399]
[1644316026188,13.2258,113.46,113.38,30.1399]
[1644316026793,14.45654517,113.46,113.38,24.1399]
[1644316026992,14.45654517,113.46,113.38,23.8899]
[1644316027192,1.23074517,113.45,113.38,23.8899]
[1644316027490,13.2287,113.43,113.38,23.8899]
[1644316028290,13.2287,113.43,113.35,24.6091]
[1644316028495,25.07920066,113.43,113.31,22.8533]
[1644316028691,1.23074517,113.42,113.31,22.8533]
[1644316028891,1.23074517,113.41,113.31,22.8533]
[1644316029191,13.2351,113.39,113.31,22.8533]
[1644316029392,24.0811,113.39,113.31,22.8533]
[1644316029792,24.0811,113.39,113.31,23.1033]
[1644316030794,24.0811,113.39,113.31,22.8533]
[1644316031195,25.31184517,113.39,113.31,22.8533]
[1644316031398,14.46584517,113.39,113.31,22.8533]
[1644316031596,13.2351,113.39,113.31,22.8533]
[1644316034202,13.2351,113.39,113.31,23.1033]
[1644316034401,13.2351,113.39,113.31,38.32069339]
[1644316034603,14.46224517,113.41,113.31,44.32069339]
[1644316034804,1.23074517,113.42,113.31,44.32069339]
[1644316035002,0.03966036,113.43,113.32,31.09166682]
[1644316035003,1.27040553,113.43,113.32,31.09166682]
[1644316035202,0.03966036,113.45,113.33,45.74707376]
[1644316035401,1.27040553,113.46,113.34,85.7233]
[1644316035601,1.27040553,113.46,113.34,93.70819339]
[1644316035602,0.03966036,113.46,113.34,93.70819339]
[1644316035803,1.23074517,113.47,113.35,1.98489339]
[1644316036003,0.03966036,113.45,113.35,39.64449339]
[1644316036203,0.03966036,113.46,113.35,59.11949339]
[1644316036402,0.03966036,113.46,113.37,44.0723]
[1644316036603,0.03966036,113.47,113.37,50.0723]
[1644316036804,14.45344517,113.48,113.37,52.30719339]
[1644316037704,14.49180553,113.49,113.39,13.2217]
[1644316037904,14.45214517,113.49,113.39,60.279]
[1644316038106,1.23074517,113.49,113.39,68.51389339]
[1644316039204,1.23074517,113.5,113.39,68.51389339]
[1644316039424,0.03966036,113.49,113.39,68.51389339]
[1644316041926,0.03966036,113.49,113.39,81.60179339]
[1644316044529,13.26086036,113.49,113.39,81.60179339]
[1644316044728,14.49160553,113.49,113.39,79.6169]
[1644316044928,14.45194517,113.49,113.39,79.6169]
[1644316047935,13.2212,113.49,113.39,79.6169]
[1644316048133,14.45194517,113.49,113.39,79.6169]
[1644316050032,13.2212,113.49,113.39,79.6169]
[1644316050233,14.45194517,113.49,113.39,79.6169]
[1644316052138,13.2212,113.49,113.39,79.6169]
[1644316052739,14.45194517,113.49,113.39,79.6169]
[1644316053541,13.2212,113.49,113.39,79.6169]
[1644316060345,14.45194517,113.49,113.39,79.6169]
[1644316060546,27.21070553,113.5,113.39,81.60179339]
[1644316061243,1.23074517,113.49,113.39,81.60179339]
[1644316063349,1.23074517,113.48,113.39,81.60179339]
[1644316064149,1.23074517,113.49,113.39,81.60179339]
[1644316064351,1.23074517,113.48,113.39,81.60179339]
[1644316064949,1.23074517,113.49,113.39,81.60179339]
[1644316068753,14.49040553,113.5,113.39,81.60179339]
[1644316068953,1.23074517,113.49,113.39,81.60179339]
[1644316069553,14.49040553,113.5,113.39,81.60179339]
[1644316069755,1.27040553,113.5,113.39,81.60179339]
[1644316070053,1.27040553,113.5,113.39,108.28346021]
[1644316070454,1.27040553,113.5,113.39,117.01546021]
[1644316070854,1.27040553,113.5,113.4,6.48429]
[1644316071056,1.27040553,113.51,113.43,13.2168]
[1644316071255,1.23074517,113.51,113.43,37.1698]
[1644316071455,1.23074517,113.51,113.43,43.1698]
[1644316073157,1.23074517,113.51,113.43,45.15469339]
[1644316073857,1.27040553,113.52,113.43,43.1698]
[1644316074157,1.23074517,113.52,113.43,43.1698]
[1644316074759,39.03580553,113.53,113.43,45.15469339]
[1644316075160,1.23074517,113.52,113.43,45.15469339]
[1644316076360,1.23074517,113.52,113.43,58.31919339]
[1644316076760,39.03580553,113.53,113.43,58.31919339]
[1644316080165,1.27040553,113.53,113.43,58.31919339]
[1644316080583,1.27040553,113.53,113.43,81.98079339]
[1644316081987,0.03966036,113.54,113.43,127.45820175]
[1644316082189,0.03966036,113.56,113.47,13.2118]
[1644316082386,48.597,113.57,113.47,13.2118]
[1644316082387,24.93536036,113.57,113.48,23.597]
[1644316082592,24.8957,113.57,113.48,29.597]
[1644316082788,24.8957,113.57,113.48,29.847]
[1644316083788,13.2129,113.56,113.5,13.2122]
[1644316084895,0.03966036,113.58,113.5,19.4622]
[1644316085097,0.03966036,113.59,113.51,24.7314]
[1644316085295,0.03966036,113.59,113.52,13.2087]
[1644316085494,22.7361,113.6,113.52,13.2087]
[1644316085696,57.23808896,113.61,113.52,13.4587]
[1644316085897,57.1984286,113.61,113.52,13.4587]
[1644316086698,13.2093,113.59,113.52,13.4587]
[1644316087201,13.2093,113.59,113.52,13.2087]
[1644316089502,13.2093,113.59,113.51,37.9423]
[1644316089702,13.2093,113.59,113.51,38.1923]
[1644316091402,13.2093,113.59,113.51,44.1923]
[1644316091604,13.2093,113.59,113.51,38.1923]
[1644316092206,13.2093,113.59,113.51,44.1923]
[1644316092403,13.2093,113.59,113.51,38.1923]
[1644316093104,13.2093,113.59,113.51,44.1923]
[1644316097208,13.2093,113.59,113.51,38.1923]
[1644316097408,13.2093,113.59,113.51,44.1923]
[1644316097611,13.2081,113.6,113.51,44.1923]
[1644316098611,13.2081,113.6,113.51,57.5707]
[1644316099615,13.2081,113.6,113.51,51.5707]
[1644316102617,25.9281,113.6,113.51,51.5707]
[1644316103922,25.9281,113.6,113.51,57.5707]
[1644316104921,12.72,113.6,113.51,59.55559339]
[1644316105122,24.32978896,113.61,113.51,59.55559339]
[1644316105322,0.48188896,113.61,113.51,59.55559339]
[1644316105523,0.48188896,113.61,113.51,78.75360339]
[1644316105726,0.48188896,113.61,113.51,92.71527021]
[1644316105923,0.4422286,113.61,113.52,24.3009]
[1644316106124,0.4422286,113.61,113.54,13.2029]
[1644316106322,0.4422286,113.61,113.55,24.2222]
[1644316106522,0.03966036,113.63,113.55,24.2222]
[1644316106725,24.49726036,113.65,113.55,30.4722]
[1644316106942,0.03966036,113.64,113.55,32.45709339]
[1644316107144,24.4576,113.65,113.56,13.2024]
[1644316107145,0.03966036,113.65,113.56,13.2024]
[1644316107342,0.03966036,113.65,113.57,24.7657]
[1644316107543,13.24016036,113.67,113.57,36.17659339]
[1644316107744,0.03966036,113.66,113.57,42.42659339]
[1644316108142,0.03966036,113.68,113.57,42.42659339]
[1644316109146,13.23966036,113.68,113.59,13.1996]
[1644316109346,13.23966036,113.68,113.59,13.4496]
[1644316109546,13.23966036,113.68,113.59,19.4496]
[1644316110448,49.6822,113.69,113.59,19.4496]
[1644316111147,49.6822,113.69,113.59,13.4496]
[1644316111849,49.6822,113.69,113.59,0.25]
[1644316112251,49.6822,113.69,113.57,31.0157]
[1644316112451,13.2017,113.67,113.57,31.0157]
[1644316112853,25.9217,113.67,113.57,31.0157]
[1644316113458,13.2017,113.67,113.57,31.0157]
[1644316114354,13.2017,113.67,113.57,33.00463401]
[1644316114654,13.2017,113.67,113.57,31.0157]
[1644316114854,13.2017,113.67,113.57,44.2172]
[1644316116655,13.2017,113.67,113.57,37.9672]
[1644316116857,25.9217,113.67,113.56,23.1013]
[1644316117055,30.36136036,113.67,113.56,23.1013]
[1644316117456,53.45626036,113.67,113.56,23.1013]
[1644316117658,53.45626036,113.67,113.53,23.3849]
[1644316117857,0.03966036,113.66,113.53,23.3849]
[1644316118058,13.2081,113.63,113.53,23.3849]
[1644316118258,13.24776036,113.63,113.53,23.3849]
[1644316119558,13.24776036,113.63,113.53,23.6349]
[1644316120066,13.24776036,113.63,113.53,42.8413]
[1644316120659,13.24776036,113.63,113.53,29.6349]
[1644316120861,13.24776036,113.63,113.53,23.6349]
[1644316122565,13.24776036,113.63,113.53,29.6349]
[1644316122964,13.24776036,113.63,113.53,42.8414]
[1644316125866,0.03966036,113.63,113.53,44.83503062]
[1644316126068,0.03966036,113.66,113.53,58.79669744]
[1644316126269,0.03966036,113.66,113.54,23.4847]
[1644316126467,0.03966036,113.66,113.57,13.2]
[1644316126669,0.03966036,113.68,113.58,24.919]
[1644316126868,0.03966036,113.68,113.58,50.39733062]
[1644316127069,0.03966036,113.68,113.58,56.64733062]
[1644316127469,12.75966036,113.7,113.58,56.64733062]
[1644316127769,13.1994,113.68,113.59,13.1994]
[1644316127971,12.75966036,113.7,113.6,24.5333]
[1644316128169,0.03966036,113.68,113.6,38.7563]
[1644316128369,25.35135157,113.72,113.61,1.99363062]
[1644316128370,12.72,113.72,113.61,1.99363062]
[1644316128572,0.04102018,113.7,113.61,7.99363062]
[1644316128772,0.04102018,113.7,113.62,49.6769]
[1644316128969,13.23572018,113.72,113.64,13.1944]
[1644316129171,13.23572018,113.72,113.64,27.7584]
[1644316129470,13.1947,113.72,113.64,28.0084]
[1644316129669,12.1947,113.72,113.64,28.0084]
[1644316132370,12.1947,113.72,113.64,0.25]
[1644316132770,12.1947,113.72,113.63,6.0]
[1644316132970,24.9147,113.72,113.63,6.25]
[1644316133869,24.9147,113.72,113.63,0.25]
[1644316134073,24.9147,113.72,113.63,6.25]
[1644316134675,24.9147,113.72,113.63,0.25]
[1644316134872,24.9147,113.72,113.62,49.6769]
[1644316135074,37.56872018,113.72,113.62,49.6769]
[1644316135474,37.56872018,113.72,113.59,22.8207]
[1644316135673,37.56872018,113.72,113.59,12.47344]
[1644316135875,4.399,113.71,113.59,6.47344]
[1644316136075,13.2014,113.67,113.59,6.47344]
[1644316137278,13.2014,113.67,113.59,6.72344]
[1644316138879,13.2014,113.67,113.59,6.47344]
[1644316139482,13.2014,113.67,113.57,45.9293]
[1644316139681,13.2014,113.67,113.53,48.3598]
[1644316139682,12.72,113.66,113.53,48.3598]
[1644316139882,13.2079,113.63,113.54,6.4763]
[1644316140081,25.3909,113.63,113.54,6.4763]
[1644316141786,25.3909,113.63,113.54,6.7263]
[1644316141985,12.72,113.62,113.54,6.7263]
[1644316142183,13.2087,113.6,113.54,6.7263]
[1644316143186,13.2087,113.6,113.54,0.25]
[1644316143587,13.2087,113.6,113.53,48.6098]
[1644316144593,13.2087,113.6,113.53,54.6098]
[1644316146193,13.2073,113.61,113.53,54.6098]
[1644316147996,13.24732018,113.62,113.53,67.8161]
[1644316148208,13.2063,113.62,113.53,69.80521614]
[1644316149810,13.24612018,113.63,113.53,69.55521614]
[1644316150011,13.2051,113.63,113.53,83.51688296]
[1644316150415,0.04102018,113.63,113.53,83.51688296]
[1644316150613,0.04102018,113.64,113.53,83.51688296]
[1644316150814,0.04102018,113.65,113.53,83.51688296]
[1644316151015,0.04102018,113.65,113.53,96.23688296]
[1644316151213,0.04102018,113.65,113.53,96.48688296]
[1644316151813,13.204,113.64,113.53,96.48688296]
[1644316155318,13.204,113.64,113.53,102.96375296]
[1644316159920,13.204,113.64,113.53,96.71375296]
[1644316160121,13.204,113.64,113.53,70.03208614]
[1644316160322,13.24502018,113.64,113.53,70.03208614]
[1644316160723,13.24502018,113.64,113.53,68.04297]
[1644316160923,13.24502018,113.64,113.53,54.83667]
[1644316161124,17.64602018,113.64,113.53,48.3598]
[1644316161326,12.72,113.63,113.53,48.3598]
[1644316161523,13.2087,113.6,113.53,48.3598]
[1644316163726,13.2087,113.6,113.53,54.3598]
[1644316164132,13.2074,113.61,113.53,54.3598]
[1644316164329,13.2074,113.61,113.53,54.6098]
[1644316167435,0.04102018,113.62,113.53,56.59891602]
[1644316167630,68.7913,113.65,113.53,76.28148602]
[1644316168033,0.04124544,113.64,113.53,76.28148602]
[1644316168733,13.205,113.63,113.53,76.28148602]
[1644316170137,0.04124544,113.64,113.53,76.28148602]
[1644316171639,13.24474544,113.64,113.53,76.28148602]
[1644316174639,0.04124544,113.64,113.53,142.34148602]
[1644316174938,4.98829526,113.68,113.54,75.08224925]
[1644316175141,2.50134369,113.68,113.58,13.1987]
[1644316175341,0.04124544,113.67,113.59,22.8438]
[1644316175540,0.04124544,113.67,113.59,49.05421602]
[1644316175737,0.04124544,113.7,113.59,55.30421602]
[1644316176138,0.04124544,113.7,113.61,13.1968]
[1644316176339,0.04124544,113.71,113.62,22.8438]
[1644316176738,39.70559701,113.72,113.62,29.0938]
[1644316176938,39.70559701,113.72,113.62,23.0938]
[1644316177538,13.1973,113.7,113.62,23.0938]
[1644316178040,13.1973,113.7,113.59,24.2213]
[1644316178338,12.72,113.69,113.59,24.2213]
[1644316178537,12.76124544,113.69,113.59,30.2213]
[1644316179339,12.76124544,113.69,113.59,24.2213]
[1644316179743,13.2014,113.67,113.59,24.4713]
[1644316179945,12.76124544,113.69,113.59,30.4713]
[1644316180141,12.72,113.69,113.6,24.2088]
[1644316180343,12.72,113.69,113.6,24.4588]
[1644316180542,12.72,113.69,113.6,30.4588]
[1644316180743,13.1995,113.68,113.6,30.2088]
[1644316182344,13.1995,113.68,113.6,30.4588]
[1644316183645,13.1995,113.68,113.6,24.4588]
[1644316186347,13.1995,113.68,113.6,0.25]
[1644316186848,25.9195,113.68,113.59,24.2213]
[1644316187047,25.9195,113.68,113.59,24.4713]
[1644316188049,25.9195,113.68,113.59,24.2213]
[1644316189249,25.9195,113.68,113.59,24.4713]
[1644316192353,25.9195,113.68,113.59,24.2213]
[1644316192553,25.9195,113.68,113.58,24.0607]
[1644316192754,4.4,113.67,113.55,6.47573]
[1644316192954,13.2064,113.64,113.55,29.69423]
[1644316193152,13.2064,113.64,113.55,35.69423]
[1644316194150,13.2064,113.64,113.55,29.94423]
[1644316195751,13.2064,113.64,113.55,23.4685]
[1644316196653,13.2064,113.64,113.55,23.2185]
[1644316198056,13.2064,113.64,113.55,23.4685]
[1644316200158,13.2064,113.64,113.55,29.4685]
[1644316200458,13.2064,113.64,113.55,29.2185]
[1644316200666,17.6074,113.64,113.55,23.2185]
[1644316200960,13.2093,113.61,113.55,23.2185]
[1644316202460,13.2093,113.61,113.55,23.4685]
[1644316202660,13.2093,113.61,113.55,23.2185]
[1644316203761,13.2093,113.61,113.53,24.0899]
[1644316203961,13.2093,113.61,113.53,30.3399]
[1644316213099,13.2093,113.61,113.53,43.5473]
[1644316213503,13.2059,113.62,113.53,43.5473]
[1644316213799,13.2059,113.62,113.54,23.3217]
[1644316214198,13.2059,113.62,113.54,29.5717]
[1644316214801,13.2059,113.62,113.54,44.76681368]
[1644316217102,13.2059,113.62,113.54,57.48681368]
[1644316217305,13.2059,113.62,113.54,44.76681368]
[1644316218103,14.43192823,113.63,113.54,44.76681368]
[1644316218603,14.43192823,113.63,113.54,57.91321368]
[1644316218906,14.43192823,113.63,113.54,70.63321368]
[1644316219803,13.2047,113.63,113.54,70.63321368]
[1644316220306,14.43192823,113.63,113.54,70.63321368]
[1644316220503,1.22722823,113.63,113.54,70.63321368]
[1644316220703,38.01802823,113.64,113.54,70.63321368]
[1644316221105,1.22722823,113.63,113.54,70.63321368]
[1644316223909,14.43192823,113.63,113.54,70.63321368]
[1644316229313,13.2047,113.63,113.54,77.10951368]
[1644316230615,13.2047,113.63,113.54,68.6438]
[1644316230815,14.43192823,113.63,113.54,68.6438]
[1644316231015,14.43192823,113.63,113.54,70.63842219]
[1644316231216,13.2047,113.63,113.54,70.63842219]
[1644316231618,14.43192823,113.63,113.54,70.63842219]
[1644316232118,23.26892823,113.63,113.53,24.0899]
[1644316232319,13.2097,113.59,113.53,24.0899]
[1644316232517,21.8347,113.59,113.53,24.0899]
[1644316233616,21.8347,113.59,113.53,24.3399]
[1644316234617,21.8347,113.59,113.53,30.3399]
[1644316234819,8.625,113.59,113.53,43.5486]
[1644316235318,24.442,113.61,113.53,37.5486]
[1644316235519,25.66922823,113.61,113.53,37.5486]
[1644316235921,13.2091,113.59,113.52,0.35436708]
[1644316236124,12.72,113.58,113.52,0.35436708]
[1644316236322,13.94722823,113.58,113.52,0.35436708]
[1644316236521,38.11042823,113.58,113.52,0.35436708]
[1644316237122,13.2143,113.57,113.52,0.35436708]
[1644316241046,25.9343,113.57,113.52,0.35436708]
[1644316241250,25.9343,113.57,113.49,25.1837]
[1644316242748,25.9343,113.57,113.49,40.39222219]
[1644316242957,25.9343,113.57,113.49,46.36822219]
[1644316243352,13.2143,113.57,113.49,46.36822219]
[1644316243751,81.0683,113.6,113.49,46.36822219]
[1644316243962,12.72,113.6,113.49,60.2033477]
[1644316244155,1.22722823,113.62,113.49,73.00917767]
[1644316244357,37.33872823,113.63,113.53,13.2077]
[1644316244554,37.33872823,113.63,113.54,24.0172]
[1644316244754,37.33872823,113.63,113.54,26.26182219]
[1644316244954,36.1115,113.63,113.54,32.26182219]
[1644316245156,12.72,113.63,113.54,32.26182219]
[1644316245355,13.2073,113.61,113.54,32.26182219]
[1644316245556,12.72,113.63,113.55,1.99462219]
[1644316245758,12.72,113.63,113.55,2.24462219]
[1644316245956,44.06564544,113.64,113.55,8.24462219]
[1644316246159,1.26847367,113.65,113.56,1.99462219]
[1644316246356,13.2036,113.64,113.56,1.99462219]
[1644316246557,13.2036,113.64,113.56,8.24462219]
[1644316247859,13.2036,113.64,113.56,21.45042219]
[1644316249864,13.24374544,113.65,113.57,1.99462219]
[1644316250064,12.72,113.67,113.59,13.2012]
[1644316250065,1.26847367,113.67,113.59,13.2012]
[1644316250265,1.26847367,113.67,113.59,13.4512]
[1644316250465,13.98847367,113.68,113.59,21.44582219]
[1644316251771,13.2012,113.66,113.59,15.44582219]
[1644316252073,13.2012,113.66,113.59,0.25]
[1644316252270,13.2012,113.66,113.56,35.58893323]
[1644316252477,13.24244544,113.66,113.56,35.58893323]
[1644316252671,14.46967367,113.66,113.56,35.58893323]
[1644316252971,27.18967367,113.66,113.56,35.58893323]
[1644316253173,27.18967367,113.66,113.56,44.39353323]
[1644316253371,27.18967367,113.66,113.56,50.86868323]
[1644316253673,27.18967367,113.66,113.56,35.66445]
[1644316254472,1.22722823,113.65,113.56,29.66445]
[1644316254675,13.2072,113.63,113.56,29.66445]
[1644316256578,24.7272,113.63,113.56,6.47515]
[1644316256777,24.7272,113.63,113.56,6.72515]
[1644316258197,24.7272,113.63,113.56,0.25]
[1644316258695,24.7272,113.63,113.55,24.6568]
[1644316260097,24.7272,113.63,113.55,0.25]
[1644316260295,24.7272,113.63,113.54,24.1065]
[1644316261097,12.72,113.62,113.54,24.1065]
[1644316261299,13.2098,113.6,113.54,24.0825]
[1644316263698,13.2098,113.6,113.52,0.024]
[1644316265302,12.72,113.59,113.52,0.024]
[1644316265499,13.2169,113.57,113.51,6.47801]
[1644316265701,12.72,113.56,113.51,6.47801]
[1644316265901,17.122,113.56,113.45,1.27558731]
[1644316266101,17.122,113.56,113.46,0.024]
[1644316266299,12.72,113.56,113.46,0.024]
[1644316266701,13.2193,113.55,113.46,0.024]
[1644316266901,25.9393,113.55,113.46,0.024]
[1644316270209,25.9393,113.55,113.46,2.02363323]
[1644316270409,13.2193,113.55,113.46,2.02363323]
[1644316270609,13.2193,113.55,113.46,8.27363323]
[1644316271210,13.2137,113.56,113.46,21.49013323]
[1644316271411,13.2137,113.56,113.47,46.4089]
[1644316271607,13.2137,113.56,113.47,52.4089]
[1644316271809,13.2137,113.56,113.48,1.99963323]
[1644316272008,13.2137,113.56,113.47,0.024]
[1644316272210,12.72,113.55,113.47,0.024]
[1644316272409,12.72,113.55,113.45,0.024]
[1644316272612,13.2192,113.52,113.45,0.024]
[1644316272810,23.5762,113.52,113.44,4.405]
[1644316273811,36.2962,113.52,113.44,4.405]
[1644316274312,36.2962,113.52,113.43,23.909]
[1644316274610,36.2962,113.52,113.43,24.159]
[1644316276114,36.2962,113.52,113.43,26.15897684]
[1644316276814,36.2962,113.52,113.43,0.274]
[1644316277216,36.2962,113.52,113.43,0.024]
[1644316277423,36.2962,113.52,113.42,0.024]
[1644316277616,40.7022,113.52,113.42,0.024]
[1644316277816,40.7022,113.52,113.41,0.024]
[1644316279018,36.2962,113.52,113.41,0.024]
[1644316279620,36.2962,113.52,113.41,15.24637684]
[1644316279819,36.2962,113.52,113.42,0.024]
[1644316280921,25.9392,113.52,113.42,0.024]
[1644316281122,25.9392,113.52,113.42,1.99997684]
[1644316281320,25.9392,113.52,113.42,2.24997684]
[1644316281521,25.9392,113.52,113.42,8.27397684]
[1644316282619,25.9392,113.52,113.42,21.49467684]
[1644316286925,25.9371,113.54,113.42,34.09367684]
[1644316287123,13.2171,113.54,113.43,23.4603]
[1644316287323,12.72,113.56,113.46,13.2155]
[1644316287524,23.77482823,113.6,113.46,13.2395]
[1644316287727,12.72,113.59,113.47,49.31807684]
[1644316287926,13.2129,113.58,113.48,0.024]
[1644316288125,13.2129,113.58,113.48,2.02397684]
[1644316288426,13.2129,113.58,113.48,8.27397684]
[1644316289727,35.758,113.6,113.5,13.2122]
[1644316289926,13.2104,113.6,113.5,13.2122]
[1644316290131,13.2104,113.6,113.5,19.4862]
[1644316290330,13.2104,113.6,113.5,13.4862]
[1644316290747,13.2104,113.6,113.5,27.8222]
[1644316292650,13.2104,113.6,113.5,19.44808751]
[1644316294152,12.72,113.59,113.5,13.44808751]
[1644316294555,13.2118,113.58,113.5,19.44808751]
[1644316294751,13.2118,113.58,113.5,13.44808751]
[1644316294952,13.2118,113.58,113.5,19.44808751]
[1644316296755,13.2118,113.58,113.5,13.44808751]
[1644316296968,12.72,113.59,113.5,13.44808751]
[1644316297158,12.72,113.59,113.5,28.89608751]
[1644316297357,13.21,113.6,113.5,28.89608751]
[1644316300459,13.21,113.6,113.5,28.64608751]
[1644316300661,25.93,113.6,113.5,13.19808751]
[1644316300860,28.03775549,113.6,113.5,0.024]
[1644316301060,4.402,113.59,113.5,0.024]
[1644316301260,13.2158,113.57,113.5,0.024]
[1644316301459,25.9358,113.57,113.48,0.024]
[1644316301665,25.9358,113.57,113.47,23.8818]
[1644316301862,25.9358,113.57,113.47,0.024]
[1644316302162,2.10775549,113.56,113.47,0.024]
[1644316302363,12.72,113.55,113.47,0.024]
[1644316302660,13.2194,113.54,113.47,0.024]
[1644316302860,25.9394,113.54,113.46,24.1741]
[1644316303261,25.9394,113.54,113.46,24.4241]
[1644316303463,25.9394,113.54,113.46,24.1741]
[1644316303664,25.9394,113.54,113.45,0.024]
[1644316303863,2.10775549,113.53,113.44,0.024]
[1644316304063,13.2224,113.51,113.44,0.024]
[1644316304367,12.72,113.5,113.42,0.024]
[1644316304564,12.72,113.5,113.41,20.49768731]
[1644316304966,12.72,113.5,113.41,19.2461]
[1644316305365,12.72,113.5,113.41,19.4961]
[1644316305567,12.72,113.5,113.41,19.2461]
[1644316305765,13.2226,113.49,113.41,19.2461]
[1644316306871,13.2226,113.49,113.41,19.4961]
[1644316307468,13.2226,113.49,113.41,13.4961]
[1644316308369,25.9407,113.5,113.41,15.49607684]
[1644316308669,13.2207,113.5,113.41,15.49607684]
[1644316308873,13.2207,113.5,113.41,15.24607684]
[1644316309072,13.2207,113.5,113.41,19.2461]
[1644316309270,25.9407,113.5,113.41,13.2461]
[1644316309871,25.9407,113.5,113.41,0.024]
[1644316311471,25.9407,113.5,113.41,13.2472]
[1644316311873,25.9407,113.5,113.41,13.4972]
[1644316313275,25.9407,113.5,113.41,15.49717684]
[1644316315476,25.9407,113.5,113.41,21.49717684]
[1644316315977,25.9407,113.5,113.41,21.24717684]
[1644316316176,25.9407,113.5,113.41,13.2472]
[1644316317178,25.9407,113.5,113.41,13.4972]
[1644316320484,25.9407,113.5,113.41,15.49714262]
[1644316320883,13.2207,113.5,113.41,21.49714262]
[1644316321683,13.2193,113.51,113.41,21.49714262]
[1644316321883,13.2193,113.51,113.42,0.024]
[1644316322083,13.2193,113.51,113.43,13.22]
[1644316322285,13.2193,113.51,113.43,13.47]
[1644316323485,13.2193,113.51,113.43,13.22]
[1644316324702,13.2193,113.51,113.43,13.47]
[1644316328816,13.2193,113.51,113.43,0.25]
[1644316329215,13.2193,113.51,113.42,25.245]
[1644316329611,13.2193,113.51,113.42,31.245]
[1644316330413,13.2193,113.51,113.42,25.245]
[1644316330813,25.9393,113.51,113.42,38.467]
[1644316335618,25.9393,113.51,113.42,44.467]
[1644316336320,25.9393,113.51,113.42,38.467]
[1644316337620,25.9393,113.51,113.42,45.71858731]
[1644316337820,12.72,113.51,113.42,47.71852993]
[1644316338022,13.2178,113.52,113.43,1.25158731]
[1644316338222,1.22722823,113.54,113.45,13.2165]
[1644316338421,1.22722823,113.55,113.46,23.3211]
[1644316338621,1.22722823,113.55,113.46,29.3451]
[1644316338821,1.22722823,113.55,113.46,31.59504262]
[1644316339021,13.2155,113.54,113.46,31.59504262]
[1644316339227,1.22722823,113.56,113.46,31.59504262]
[1644316339421,1.22722823,113.56,113.48,13.2152]
[1644316339625,1.22722823,113.56,113.48,19.2152]
[1644316339826,1.22722823,113.56,113.48,19.4652]